[Event "Late-Titled-Tuesday-Blitz-May-07-2024"]
[Site "Chess.com"]
[Date "2024.05.07"]
[Round "1"]
[White "Meri-Arabidze"]
[Black "EliteChess0967"]
[Result "1-0"]
[WhiteElo "2715"]
[BlackElo "2407"]
[TimeControl "180+1"]
[EndTime "14:05:45 PDT"]
[Termination "Meri-Arabidze won by resignation"]

1. Nf3 {[%clk 0:03:00.9]} 1... d5 {[%clk 0:02:59.4]} 2. c4 {[%clk 0:03:00.7]}
2... c6 {[%clk 0:02:59.6]} 3. g3 {[%clk 0:03:00.6]} 3... Nf6 {[%clk 0:02:59.3]}
4. Bg2 {[%clk 0:03:01]} 4... e6 {[%clk 0:02:58.5]} 5. O-O {[%clk 0:03:00.8]}
5... Be7 {[%clk 0:02:59]} 6. b3 {[%clk 0:03:00.6]} 6... O-O {[%clk 0:02:58.9]}
7. Bb2 {[%clk 0:03:01]} 7... Nbd7 {[%clk 0:02:57.9]} 8. e3 {[%clk 0:03:01.4]}
8... b6 {[%clk 0:02:56.4]} 9. Qe2 {[%clk 0:03:01.8]} 9... Bb7 {[%clk 0:02:56.5]}
10. Nc3 {[%clk 0:03:02.2]} 10... Rc8 {[%clk 0:02:53.6]} 11. d3 {[%clk
0:03:02.5]} 11... c5 {[%clk 0:02:37.3]} 12. Rad1 {[%clk 0:03:01.8]} 12... Ba6
{[%clk 0:02:24.7]} 13. Ne1 {[%clk 0:03:01.5]} 13... Nb8 {[%clk 0:02:14.2]} 14.
f4 {[%clk 0:03:01.2]} 14... Nc6 {[%clk 0:02:13.3]} 15. Nf3 {[%clk 0:02:59.9]}
15... Bd6 {[%clk 0:02:05.4]} 16. e4 {[%clk 0:02:55]} 16... d4 {[%clk 0:02:01.8]}
17. Nb1 {[%clk 0:02:54.2]} 17... e5 {[%clk 0:02:01.5]} 18. Nh4 {[%clk
0:02:53.1]} 18... Re8 {[%clk 0:01:52.4]} 19. Bc1 {[%clk 0:02:50.6]} 19... b5
{[%clk 0:01:46.3]} 20. Nd2 {[%clk 0:02:48.6]} 20... Rb8 {[%clk 0:01:44.1]} 21.
Nf5 {[%clk 0:02:43.7]} 21... Bf8 {[%clk 0:01:44.1]} 22. Nf3 {[%clk 0:02:41.6]}
22... bxc4 {[%clk 0:01:39.6]} 23. bxc4 {[%clk 0:02:42.5]} 23... exf4 {[%clk
0:01:39.1]} 24. Bxf4 {[%clk 0:02:38.6]} 24... Rb4 {[%clk 0:01:38.9]} 25. Bg5
{[%clk 0:02:34.5]} 25... h6 {[%clk 0:01:36.1]} 26. Bh4 {[%clk 0:02:27.1]} 26...
g6 {[%clk 0:01:30.9]} 27. Bxf6 {[%clk 0:02:19.5]} 27... Qxf6 {[%clk 0:01:29.3]}
28. N5h4 {[%clk 0:02:20.1]} 28... Qe7 {[%clk 0:01:24.5]} 29. Qd2 {[%clk
0:02:14.4]} 29... Reb8 {[%clk 0:01:22.4]} 30. Qf4 {[%clk 0:02:10.6]} 30... Bg7
{[%clk 0:01:19.3]} 31. Qc1 {[%clk 0:01:45.4]} 31... Rb2 {[%clk 0:01:16]} 32. Rd2
{[%clk 0:01:45.4]} 32... Qb7 {[%clk 0:01:12.5]} 33. e5 {[%clk 0:01:40]} 33...
Rxd2 {[%clk 0:01:06.9]} 34. Qxd2 {[%clk 0:01:40.9]} 34... Qb2 {[%clk 0:01:04.6]}
35. Qf4 {[%clk 0:01:40.9]} 35... Rf8 {[%clk 0:00:58.5]} 36. e6 {[%clk
0:01:37.9]} 36... g5 {[%clk 0:00:47]} 37. Nxg5 {[%clk 0:01:29.7]} 37... hxg5
{[%clk 0:00:45.5]} 38. exf7+ {[%clk 0:01:29.4]} 38... Kh7 {[%clk 0:00:29.2]} 39.
Be4+ {[%clk 0:01:29.2]} 39... Kh8 {[%clk 0:00:26.2]} 40. Ng6+ {[%clk 0:01:28.8]}
1-0

[Event "Late-Titled-Tuesday-Blitz-May-07-2024"]
[Site "Chess.com"]
[Date "2024.05.07"]
[Round "1"]
[White "chessisveryfun1264"]
[Black "Firouzja2003"]
[Result "0-1"]
[WhiteElo "2560"]
[BlackElo "3188"]
[TimeControl "180+1"]
[EndTime "14:05:52 PDT"]
[Termination "Firouzja2003 won by resignation"]

1. e4 {[%clk 0:03:00.9]} 1... c5 {[%clk 0:02:59.3]} 2. Nf3 {[%clk 0:02:54.2]}
2... d6 {[%clk 0:03:00]} 3. d4 {[%clk 0:02:52.5]} 3... cxd4 {[%clk 0:03:00.9]}
4. Qxd4 {[%clk 0:02:53.3]} 4... Nf6 {[%clk 0:03:00.9]} 5. Bb5+ {[%clk
0:02:53.7]} 5... Nc6 {[%clk 0:02:59.8]} 6. c4 {[%clk 0:02:54.6]} 6... e5 {[%clk
0:02:53.7]} 7. Qd3 {[%clk 0:02:53.2]} 7... Be7 {[%clk 0:02:53.3]} 8. Nc3 {[%clk
0:02:52]} 8... O-O {[%clk 0:02:54]} 9. Bg5 {[%clk 0:02:48.4]} 9... a6 {[%clk
0:02:54.2]} 10. Bxc6 {[%clk 0:02:48.3]} 10... bxc6 {[%clk 0:02:54.4]} 11. O-O
{[%clk 0:02:46.4]} 11... Be6 {[%clk 0:02:44]} 12. b3 {[%clk 0:02:46.1]} 12... h6
{[%clk 0:02:41.8]} 13. Be3 {[%clk 0:02:42.1]} 13... Qa5 {[%clk 0:02:41.3]} 14.
h3 {[%clk 0:02:40.1]} 14... Rfd8 {[%clk 0:02:40.8]} 15. Qd2 {[%clk 0:02:31.5]}
15... Kf8 {[%clk 0:02:22.1]} 16. Qc2 {[%clk 0:02:14]} 16... Rac8 {[%clk
0:02:16.6]} 17. c5 {[%clk 0:02:05.2]} 17... d5 {[%clk 0:02:13.4]} 18. Na4 {[%clk
0:01:54.8]} 18... d4 {[%clk 0:01:54.5]} 19. Bd2 {[%clk 0:01:52.8]} 19... Qb5
{[%clk 0:01:55.1]} 20. Nxe5 {[%clk 0:01:44.5]} 20... d3 {[%clk 0:01:55.1]} 21.
Qc1 {[%clk 0:01:31.1]} 21... Nxe4 {[%clk 0:01:52.7]} 22. Bxh6 {[%clk 0:01:17.1]}
22... d2 {[%clk 0:01:45.8]} 23. Qc2 {[%clk 0:01:17.1]} 23... Qe2 {[%clk
0:01:45.2]} 24. Nc3 {[%clk 0:01:04.4]} 24... d1=Q {[%clk 0:01:28.7]} 25. Qxe2
{[%clk 0:01:04]} 25... Qxe2 {[%clk 0:01:28.2]} 26. Bxg7+ {[%clk 0:01:00.8]}
26... Kxg7 {[%clk 0:01:28.2]} 27. Nxe2 {[%clk 0:01:01.5]} 27... Bxc5 {[%clk
0:01:26.9]} 28. Nf4 {[%clk 0:00:57.3]} 28... Rd2 {[%clk 0:01:26.1]} 29. Nxe6+
{[%clk 0:00:57.2]} 29... fxe6 {[%clk 0:01:26.5]} 30. Ng4 {[%clk 0:00:58.1]}
30... Rf8 {[%clk 0:01:19.1]} 31. Rac1 {[%clk 0:00:58.3]} 31... Bd4 {[%clk
0:01:13.6]} 32. Rxc6 {[%clk 0:00:56.5]} 32... Nxf2 {[%clk 0:01:13.5]} 33. Nxf2
{[%clk 0:00:46.6]} 33... Bxf2+ {[%clk 0:01:13.4]} 34. Kh1 {[%clk 0:00:47]} 34...
Bg3 {[%clk 0:01:14.1]} 35. Rf3 {[%clk 0:00:33.8]} 35... Rd1+ {[%clk 0:01:13.6]}
0-1

[Event "Late-Titled-Tuesday-Blitz-May-07-2024"]
[Site "Chess.com"]
[Date "2024.05.07"]
[Round "1"]
[White "VictorFcQNK"]
[Black "Agent-JL"]
[Result "0-1"]
[WhiteElo "2094"]
[BlackElo "2579"]
[TimeControl "180+1"]
[EndTime "14:05:57 PDT"]
[Termination "Agent-JL won by resignation"]

1. d4 {[%clk 0:02:59.4]} 1... Nf6 {[%clk 0:02:55.3]} 2. Nf3 {[%clk 0:02:58.9]}
2... d5 {[%clk 0:02:54.4]} 3. e3 {[%clk 0:02:56.7]} 3... g6 {[%clk 0:02:52.2]}
4. c4 {[%clk 0:02:53.7]} 4... c6 {[%clk 0:02:50.3]} 5. Nc3 {[%clk 0:02:46.8]}
5... Bg7 {[%clk 0:02:50.1]} 6. Bd3 {[%clk 0:02:35.2]} 6... O-O {[%clk
0:02:49.2]} 7. O-O {[%clk 0:02:34.9]} 7... Nbd7 {[%clk 0:02:46.9]} 8. Re1 {[%clk
0:02:28.9]} 8... Re8 {[%clk 0:02:45.8]} 9. e4 {[%clk 0:02:26.2]} 9... dxe4
{[%clk 0:02:45.5]} 10. Nxe4 {[%clk 0:02:25.4]} 10... Nxe4 {[%clk 0:02:40.5]} 11.
Bxe4 {[%clk 0:02:24.7]} 11... Qc7 {[%clk 0:02:40.1]} 12. Bg5 {[%clk 0:01:51.5]}
12... Nf6 {[%clk 0:02:16.8]} 13. Bc2 {[%clk 0:01:44.2]} 13... Be6 {[%clk
0:02:10.4]} 14. b3 {[%clk 0:01:41]} 14... Rad8 {[%clk 0:02:07.8]} 15. Qe2 {[%clk
0:01:31]} 15... Bg4 {[%clk 0:01:54.4]} 16. Rad1 {[%clk 0:01:28.5]} 16... Qa5
{[%clk 0:01:41.2]} 17. Bb1 {[%clk 0:01:17.2]} 17... Bxf3 {[%clk 0:01:32.7]} 18.
Qxf3 {[%clk 0:01:16.9]} 18... Qxg5 {[%clk 0:01:32.2]} 19. h3 {[%clk 0:01:13.2]}
19... Nh5 {[%clk 0:01:14.7]} 20. Re4 {[%clk 0:01:09.3]} 20... f5 {[%clk
0:01:05.5]} 21. Re2 {[%clk 0:00:56.6]} 21... Rxd4 {[%clk 0:01:01.9]} 22. Rxd4
{[%clk 0:00:55.1]} 22... Bxd4 {[%clk 0:01:02.8]} 23. Re1 {[%clk 0:00:47]} 23...
e5 {[%clk 0:01:00]} 24. b4 {[%clk 0:00:41.9]} 24... e4 {[%clk 0:00:51.9]} 25.
Qd1 {[%clk 0:00:41.7]} 25... Nf4 {[%clk 0:00:43.9]} 26. g3 {[%clk 0:00:29.8]}
26... Qxg3+ {[%clk 0:00:43.7]} 0-1

[Event "Late-Titled-Tuesday-Blitz-May-07-2024"]
[Site "Chess.com"]
[Date "2024.05.07"]
[Round "1"]
[White "toninhojit"]
[Black "SoCalJuniorChess"]
[Result "1-0"]
[WhiteElo "2598"]
[BlackElo "2183"]
[TimeControl "180+1"]
[EndTime "14:06:02 PDT"]
[Termination "toninhojit won by resignation"]

1. d4 {[%clk 0:03:00.9]} 1... Nf6 {[%clk 0:02:59.5]} 2. c4 {[%clk 0:03:01.8]}
2... e5 {[%clk 0:02:59.6]} 3. dxe5 {[%clk 0:03:00.4]} 3... Ng4 {[%clk
0:02:59.9]} 4. Nf3 {[%clk 0:02:53.1]} 4... Nc6 {[%clk 0:02:59.4]} 5. Bf4 {[%clk
0:02:50.3]} 5... Bb4+ {[%clk 0:02:54.8]} 6. Nc3 {[%clk 0:02:49.8]} 6... Bxc3+
{[%clk 0:02:53.3]} 7. bxc3 {[%clk 0:02:50.7]} 7... Qe7 {[%clk 0:02:53.1]} 8. Qd5
{[%clk 0:02:51]} 8... O-O {[%clk 0:02:36.3]} 9. h3 {[%clk 0:02:49.9]} 9... Nh6
{[%clk 0:02:31.7]} 10. Bxh6 {[%clk 0:02:49.9]} 10... gxh6 {[%clk 0:02:32.6]} 11.
e3 {[%clk 0:02:45.3]} 11... Re8 {[%clk 0:02:32.8]} 12. Be2 {[%clk 0:02:34.8]}
12... Nxe5 {[%clk 0:02:32.2]} 13. Rd1 {[%clk 0:02:28.3]} 13... c6 {[%clk
0:02:19.6]} 14. Qd6 {[%clk 0:02:19.1]} 14... Qxd6 {[%clk 0:02:11.9]} 15. Rxd6
{[%clk 0:02:20]} 15... Nxf3+ {[%clk 0:02:06.4]} 16. Bxf3 {[%clk 0:02:18]} 16...
Re6 {[%clk 0:02:06.9]} 17. c5 {[%clk 0:02:18.3]} 17... Rxd6 {[%clk 0:02:04.6]}
18. cxd6 {[%clk 0:02:19.2]} 18... b6 {[%clk 0:02:01.8]} 19. O-O {[%clk
0:02:12.1]} 19... Ba6 {[%clk 0:02:01.5]} 20. Rd1 {[%clk 0:02:12.3]} 20... Bc4
{[%clk 0:02:00.9]} 21. a3 {[%clk 0:02:11.8]} 21... b5 {[%clk 0:02:00.8]} 22. Bg4
{[%clk 0:02:02.8]} 22... Be6 {[%clk 0:01:53.3]} 23. Be2 {[%clk 0:02:02.1]} 23...
Rb8 {[%clk 0:01:49.3]} 24. e4 {[%clk 0:02:01.9]} 24... Rb6 {[%clk 0:01:49.1]}
25. f4 {[%clk 0:02:01.9]} 25... Ra6 {[%clk 0:01:49]} 26. f5 {[%clk 0:01:49.5]}
26... Bb3 {[%clk 0:01:42.9]} 27. Rd2 {[%clk 0:01:47.3]} 27... Rxa3 {[%clk
0:01:41.7]} 28. e5 {[%clk 0:01:47.1]} 28... Ra1+ {[%clk 0:01:36.8]} 29. Kh2
{[%clk 0:01:46.5]} 29... Rc1 {[%clk 0:01:30.4]} 30. c4 {[%clk 0:01:45.7]} 30...
Kf8 {[%clk 0:00:56.1]} 31. e6 {[%clk 0:01:26.4]} 31... Ke8 {[%clk 0:00:50.1]}
32. Bh5 {[%clk 0:01:10]} 32... dxe6 {[%clk 0:00:46.7]} 33. fxe6 {[%clk
0:01:10.9]} 33... Bxc4 {[%clk 0:00:25.9]} 34. Bxf7+ {[%clk 0:01:10.1]} 34... Kf8
{[%clk 0:00:23.4]} 35. d7 {[%clk 0:01:10.3]} 1-0

[Event "Late-Titled-Tuesday-Blitz-May-07-2024"]
[Site "Chess.com"]
[Date "2024.05.07"]
[Round "1"]
[White "moro182"]
[Black "Vincefm"]
[Result "1-0"]
[WhiteElo "2867"]
[BlackElo "2507"]
[TimeControl "180+1"]
[EndTime "14:06:04 PDT"]
[Termination "moro182 won by resignation"]

1. d4 {[%clk 0:02:57.9]} 1... Nf6 {[%clk 0:02:58.6]} 2. Bf4 {[%clk 0:02:58.4]}
2... e6 {[%clk 0:02:56.5]} 3. e3 {[%clk 0:02:58.6]} 3... d5 {[%clk 0:02:56.4]}
4. Nf3 {[%clk 0:02:58.7]} 4... Bd6 {[%clk 0:02:56.1]} 5. Nbd2 {[%clk 0:02:59.3]}
5... Bxf4 {[%clk 0:02:44.5]} 6. exf4 {[%clk 0:03:00.2]} 6... c5 {[%clk 0:02:45]}
7. dxc5 {[%clk 0:03:00.6]} 7... Qc7 {[%clk 0:02:45.1]} 8. g3 {[%clk 0:03:01.1]}
8... Qxc5 {[%clk 0:02:44]} 9. Bd3 {[%clk 0:03:01.7]} 9... O-O {[%clk 0:02:41.2]}
10. Qe2 {[%clk 0:03:01.9]} 10... Nc6 {[%clk 0:02:30]} 11. c3 {[%clk 0:02:53.3]}
11... Rb8 {[%clk 0:01:54.2]} 12. O-O {[%clk 0:02:51.1]} 12... b5 {[%clk
0:01:54.3]} 13. a3 {[%clk 0:02:51.5]} 13... a5 {[%clk 0:01:53.1]} 14. Nb3 {[%clk
0:02:51.8]} 14... Qb6 {[%clk 0:01:52]} 15. Nbd4 {[%clk 0:02:52.2]} 15... Nxd4
{[%clk 0:01:42.4]} 16. cxd4 {[%clk 0:02:44.6]} 16... Ba6 {[%clk 0:01:21.6]} 17.
Rfc1 {[%clk 0:02:42.8]} 17... Rfc8 {[%clk 0:01:21]} 18. a4 {[%clk 0:02:39.1]}
18... h6 {[%clk 0:01:09.9]} 19. Rxc8+ {[%clk 0:02:33.3]} 19... Rxc8 {[%clk
0:01:05.4]} 20. axb5 {[%clk 0:02:30.2]} 20... Bb7 {[%clk 0:01:04.1]} 21. Qd2
{[%clk 0:02:30.3]} 21... Ra8 {[%clk 0:00:23.6]} 22. Qc3 {[%clk 0:02:30.1]} 22...
Ne4 {[%clk 0:00:22.8]} 23. Qa3 {[%clk 0:02:18.3]} 23... f6 {[%clk 0:00:16.9]}
24. Qe7 {[%clk 0:02:11.6]} 24... Rc8 {[%clk 0:00:13.1]} 25. f5 {[%clk
0:02:01.8]} 25... exf5 {[%clk 0:00:09.7]} 26. Qa3 {[%clk 0:01:56.4]} 26... Ng5
{[%clk 0:00:05.3]} 27. Bxf5 {[%clk 0:01:50.4]} 27... Nxf3+ {[%clk 0:00:04.2]}
28. Qxf3 {[%clk 0:01:51.3]} 28... Rc4 {[%clk 0:00:04.5]} 29. Bd3 {[%clk
0:01:48]} 29... Rxd4 {[%clk 0:00:04.8]} 30. Qf5 {[%clk 0:01:48.4]} 30... Rb4
{[%clk 0:00:02.6]} 31. Qh7+ {[%clk 0:01:42.5]} 31... Kf8 {[%clk 0:00:02.9]} 32.
Bg6 {[%clk 0:01:42.5]} 32... Rxb2 {[%clk 0:00:02.8]} 33. Qh8+ {[%clk 0:01:42.8]}
33... Ke7 {[%clk 0:00:03.4]} 34. Qxg7+ {[%clk 0:01:43.4]} 34... Ke6 {[%clk
0:00:02.1]} 35. Re1+ {[%clk 0:01:42]} 35... Kd6 {[%clk 0:00:02.4]} 36. Qxf6+
{[%clk 0:01:41.5]} 36... Kc7 {[%clk 0:00:03]} 37. Qxb2 {[%clk 0:01:42.2]} 37...
d4 {[%clk 0:00:02.7]} 38. Be4 {[%clk 0:01:35.8]} 38... Bxe4 {[%clk 0:00:02.5]}
39. Rxe4 {[%clk 0:01:36.7]} 39... a4 {[%clk 0:00:02.5]} 40. Qxd4 {[%clk
0:01:36.7]} 40... Qxb5 {[%clk 0:00:02.9]} 41. Qc4+ {[%clk 0:01:36.1]} 41... Qxc4
{[%clk 0:00:03]} 42. Rxc4+ {[%clk 0:01:37]} 42... Kd6 {[%clk 0:00:03.7]} 43.
Rxa4 {[%clk 0:01:37.2]} 1-0

[Event "Late-Titled-Tuesday-Blitz-May-07-2024"]
[Site "Chess.com"]
[Date "2024.05.07"]
[Round "1"]
[White "chess123456s"]
[Black "rionelG"]
[Result "1-0"]
[WhiteElo "2632"]
[BlackElo "2297"]
[TimeControl "180+1"]
[EndTime "14:06:04 PDT"]
[Termination "chess123456s won by resignation"]

1. Nf3 {[%clk 0:02:58.2]} 1... c5 {[%clk 0:02:49.6]} 2. e4 {[%clk 0:02:57.9]}
2... d6 {[%clk 0:02:48.8]} 3. d4 {[%clk 0:02:58.4]} 3... cxd4 {[%clk 0:02:49.7]}
4. Nxd4 {[%clk 0:02:59.3]} 4... Nf6 {[%clk 0:02:49.8]} 5. Nc3 {[%clk 0:02:57.2]}
5... a6 {[%clk 0:02:50.1]} 6. Be3 {[%clk 0:02:56.8]} 6... Ng4 {[%clk 0:02:47.3]}
7. Bc1 {[%clk 0:02:56.4]} 7... Nf6 {[%clk 0:02:47.1]} 8. Be2 {[%clk 0:02:53.5]}
8... e5 {[%clk 0:02:40.9]} 9. Nb3 {[%clk 0:02:53.2]} 9... Be7 {[%clk 0:02:39.1]}
10. O-O {[%clk 0:02:52.8]} 10... O-O {[%clk 0:02:27.6]} 11. Be3 {[%clk
0:02:53.4]} 11... Be6 {[%clk 0:02:26.6]} 12. Qd2 {[%clk 0:02:50.4]} 12... Nbd7
{[%clk 0:02:22.8]} 13. a4 {[%clk 0:02:44.6]} 13... b6 {[%clk 0:02:14.1]} 14. Kh1
{[%clk 0:02:40.6]} 14... Qc7 {[%clk 0:02:06.8]} 15. f4 {[%clk 0:02:33.8]} 15...
exf4 {[%clk 0:02:06.4]} 16. Bxf4 {[%clk 0:02:34.7]} 16... Ne5 {[%clk 0:02:06.9]}
17. Nd4 {[%clk 0:02:32]} 17... Rfe8 {[%clk 0:01:53.3]} 18. Rad1 {[%clk
0:02:27.4]} 18... Bf8 {[%clk 0:01:52]} 19. Bg5 {[%clk 0:02:22.7]} 19... Nfd7
{[%clk 0:01:39]} 20. Nd5 {[%clk 0:02:16.1]} 20... Bxd5 {[%clk 0:01:38.2]} 21.
exd5 {[%clk 0:02:17]} 21... Nc5 {[%clk 0:01:35]} 22. Bf4 {[%clk 0:01:53.4]}
22... Ne4 {[%clk 0:01:22]} 23. Qe3 {[%clk 0:01:47.3]} 23... Ng6 {[%clk
0:01:21.3]} 24. Bg3 {[%clk 0:01:45.4]} 24... Nxg3+ {[%clk 0:01:20.5]} 25. Qxg3
{[%clk 0:01:46.3]} 25... Be7 {[%clk 0:00:59.2]} 26. Bd3 {[%clk 0:01:42.5]} 26...
Bf6 {[%clk 0:00:54.3]} 27. Rxf6 {[%clk 0:01:30.4]} 27... gxf6 {[%clk 0:00:55.2]}
28. Nf5 {[%clk 0:01:30.7]} 28... Re5 {[%clk 0:00:47.8]} 29. h4 {[%clk
0:01:27.4]} 29... Qd7 {[%clk 0:00:40.2]} 30. Qf3 {[%clk 0:01:20.4]} 30... Ne7
{[%clk 0:00:28]} 31. Qg4+ {[%clk 0:01:15.8]} 31... Kf8 {[%clk 0:00:17.1]} 32.
Qg7+ {[%clk 0:01:15.5]} 32... Ke8 {[%clk 0:00:16.7]} 33. Qh8+ {[%clk 0:01:16.4]}
1-0

[Event "Late-Titled-Tuesday-Blitz-May-07-2024"]
[Site "Chess.com"]
[Date "2024.05.07"]
[Round "1"]
[White "masnyszachistaaa"]
[Black "jamengrand"]
[Result "1-0"]
[WhiteElo "2594"]
[BlackElo "2176"]
[TimeControl "180+1"]
[EndTime "14:06:05 PDT"]
[Termination "masnyszachistaaa won on time"]

1. d4 {[%clk 0:02:55.7]} 1... d5 {[%clk 0:02:59.4]} 2. Bf4 {[%clk 0:02:54.9]}
2... c5 {[%clk 0:02:58.6]} 3. e3 {[%clk 0:02:54.9]} 3... Nc6 {[%clk 0:02:58.2]}
4. c3 {[%clk 0:02:54.3]} 4... Nf6 {[%clk 0:02:57.6]} 5. Nd2 {[%clk 0:02:53.2]}
5... Bf5 {[%clk 0:02:57.1]} 6. Bb5 {[%clk 0:02:47]} 6... e6 {[%clk 0:02:51.9]}
7. Ngf3 {[%clk 0:02:43.7]} 7... a6 {[%clk 0:02:51.2]} 8. Bxc6+ {[%clk 0:02:42]}
8... bxc6 {[%clk 0:02:52.1]} 9. O-O {[%clk 0:02:41.9]} 9... Nd7 {[%clk
0:02:46.6]} 10. Ne5 {[%clk 0:02:28.4]} 10... Nxe5 {[%clk 0:02:43.4]} 11. Bxe5
{[%clk 0:02:29.3]} 11... f6 {[%clk 0:02:26.6]} 12. Bg3 {[%clk 0:02:29.3]} 12...
Bd6 {[%clk 0:02:12.4]} 13. dxc5 {[%clk 0:02:24]} 13... Bxc5 {[%clk 0:02:11.2]}
14. Nb3 {[%clk 0:02:24.7]} 14... Bd6 {[%clk 0:02:10.9]} 15. Nd4 {[%clk
0:02:24.2]} 15... Bxg3 {[%clk 0:02:03.4]} 16. hxg3 {[%clk 0:02:21.4]} 16... Qb6
{[%clk 0:01:57.3]} 17. Nxf5 {[%clk 0:02:20.1]} 17... exf5 {[%clk 0:01:55.8]} 18.
Qc2 {[%clk 0:02:19.9]} 18... O-O {[%clk 0:01:47]} 19. c4 {[%clk 0:02:20.3]}
19... Qc5 {[%clk 0:01:33.7]} 20. Rac1 {[%clk 0:02:19.3]} 20... dxc4 {[%clk
0:01:32.8]} 21. Qxc4+ {[%clk 0:02:19.6]} 21... Qxc4 {[%clk 0:01:22.2]} 22. Rxc4
{[%clk 0:02:20.5]} 22... Rfb8 {[%clk 0:01:05.1]} 23. b3 {[%clk 0:01:49.6]} 23...
Rb6 {[%clk 0:01:03.5]} 24. Rd1 {[%clk 0:01:45.3]} 24... Ra7 {[%clk 0:00:57.7]}
25. Rd8+ {[%clk 0:01:41]} 25... Kf7 {[%clk 0:00:57.3]} 26. Rc8 {[%clk
0:01:41.9]} 26... a5 {[%clk 0:00:52]} 27. R8xc6 {[%clk 0:01:38.9]} 27... Rbb7
{[%clk 0:00:49.5]} 28. R6c5 {[%clk 0:01:36.1]} 28... a4 {[%clk 0:00:28]} 29.
Rxa4 {[%clk 0:01:35.2]} 29... Rxa4 {[%clk 0:00:27.7]} 30. bxa4 {[%clk
0:01:36.1]} 30... Rb2 {[%clk 0:00:24.5]} 31. Rxf5 {[%clk 0:01:33.5]} 31... Rxa2
{[%clk 0:00:24.2]} 32. Ra5 {[%clk 0:01:33.8]} 32... g5 {[%clk 0:00:19.4]} 33. g4
{[%clk 0:01:27.7]} 33... Kg6 {[%clk 0:00:13.9]} 34. f4 {[%clk 0:01:25.1]} 34...
gxf4 {[%clk 0:00:07.1]} 35. exf4 {[%clk 0:01:26]} 1-0

[Event "Late-Titled-Tuesday-Blitz-May-07-2024"]
[Site "Chess.com"]
[Date "2024.05.07"]
[Round "1"]
[White "Temirlan_Baltabaev"]
[Black "cthake"]
[Result "1-0"]
[WhiteElo "2561"]
[BlackElo "1863"]
[TimeControl "180+1"]
[EndTime "14:06:07 PDT"]
[Termination "Temirlan_Baltabaev won on time"]

1. d4 {[%clk 0:02:58.9]} 1... Nf6 {[%clk 0:02:58]} 2. Nf3 {[%clk 0:02:58.6]}
2... e6 {[%clk 0:02:55.7]} 3. c4 {[%clk 0:02:58.2]} 3... c5 {[%clk 0:02:55]} 4.
d5 {[%clk 0:02:57.5]} 4... exd5 {[%clk 0:02:53.9]} 5. cxd5 {[%clk 0:02:58.4]}
5... d6 {[%clk 0:02:53.9]} 6. Nc3 {[%clk 0:02:58.5]} 6... g6 {[%clk 0:02:53.8]}
7. g3 {[%clk 0:02:58.7]} 7... Bg7 {[%clk 0:02:53.7]} 8. Bg2 {[%clk 0:02:59]}
8... O-O {[%clk 0:02:54.2]} 9. O-O {[%clk 0:02:58.8]} 9... Na6 {[%clk
0:02:50.9]} 10. Nd2 {[%clk 0:02:56.8]} 10... Nc7 {[%clk 0:02:48.4]} 11. a4
{[%clk 0:02:55.3]} 11... Re8 {[%clk 0:02:43.1]} 12. Nc4 {[%clk 0:02:52.8]} 12...
Bf5 {[%clk 0:02:37.1]} 13. f3 {[%clk 0:02:47.3]} 13... Rb8 {[%clk 0:02:02.9]}
14. e4 {[%clk 0:02:46.3]} 14... Bc8 {[%clk 0:02:02.1]} 15. Bf4 {[%clk
0:02:36.2]} 15... b5 {[%clk 0:01:50.9]} 16. axb5 {[%clk 0:02:34.8]} 16... Nxb5
{[%clk 0:01:49.7]} 17. Nxb5 {[%clk 0:02:32.5]} 17... Rxb5 {[%clk 0:01:49.7]} 18.
Rxa7 {[%clk 0:02:23.7]} 18... Bf8 {[%clk 0:01:32.2]} 19. Qc2 {[%clk 0:02:19.4]}
19... Nh5 {[%clk 0:01:19.3]} 20. Be3 {[%clk 0:02:13.3]} 20... f5 {[%clk
0:01:18.9]} 21. b3 {[%clk 0:02:01.2]} 21... Qf6 {[%clk 0:00:58.7]} 22. g4 {[%clk
0:01:53.4]} 22... f4 {[%clk 0:00:47.2]} 23. Bf2 {[%clk 0:01:48.7]} 23... Ng7
{[%clk 0:00:45.6]} 24. Re1 {[%clk 0:01:39.9]} 24... h5 {[%clk 0:00:37]} 25. h3
{[%clk 0:01:39.5]} 25... hxg4 {[%clk 0:00:35.5]} 26. hxg4 {[%clk 0:01:39.7]}
26... g5 {[%clk 0:00:32.7]} 27. Bf1 {[%clk 0:01:33.8]} 27... Re7 {[%clk
0:00:29]} 28. Rxe7 {[%clk 0:01:30.4]} 28... Qxe7 {[%clk 0:00:27.8]} 29. e5
{[%clk 0:01:30.5]} 29... dxe5 {[%clk 0:00:20.2]} 30. Nxe5 {[%clk 0:01:30.1]}
30... Rb4 {[%clk 0:00:15.3]} 31. Nd3 {[%clk 0:01:27.2]} 31... Qa7 {[%clk
0:00:13.7]} 32. Nxb4 {[%clk 0:01:26.8]} 32... Qa5 {[%clk 0:00:10.2]} 33. Nc6
{[%clk 0:01:24.9]} 33... Qc7 {[%clk 0:00:07.2]} 34. Bxc5 {[%clk 0:01:20.6]}
34... Bxc5+ {[%clk 0:00:01.4]} 35. Qxc5 {[%clk 0:01:21.5]} 1-0